[Event "Early-Titled-Tuesday-Blitz-April-16-2024"]
[Site "Chess.com"]
[Date "2024.04.16"]
[Round "9"]
[White "JJDAREK"]
[Black "Lily_Schirmbeck"]
[Result "1-0"]
[WhiteElo "2316"]
[BlackElo "1561"]
[TimeControl "180+1"]
[EndTime "9:44:42 PDT"]
[Termination "JJDAREK won by checkmate"]

1. d4 {[%clk 0:02:59.4]} 1... Nf6 {[%clk 0:02:56.3]} 2. c4 {[%clk 0:02:56.1]}
2... g6 {[%clk 0:02:55.1]} 3. Nc3 {[%clk 0:02:54.8]} 3... d5 {[%clk 0:02:53.5]}
4. cxd5 {[%clk 0:02:54.4]} 4... Nxd5 {[%clk 0:02:52.9]} 5. Bd2 {[%clk
0:02:54.8]} 5... Bg7 {[%clk 0:02:51.1]} 6. e4 {[%clk 0:02:54.3]} 6... Nxc3
{[%clk 0:02:50.3]} 7. Bxc3 {[%clk 0:02:55.2]} 7... O-O {[%clk 0:02:45.1]} 8. h4
{[%clk 0:02:52.9]} 8... c5 {[%clk 0:02:42.3]} 9. d5 {[%clk 0:02:52.3]} 9...
Bxc3+ {[%clk 0:02:40.7]} 10. bxc3 {[%clk 0:02:53.2]} 10... Qa5 {[%clk
0:02:40.1]} 11. Qd2 {[%clk 0:02:51.1]} 11... e6 {[%clk 0:02:39.3]} 12. d6 {[%clk
0:02:48.6]} 12... e5 {[%clk 0:02:34.2]} 13. h5 {[%clk 0:02:31.4]} 13... Be6
{[%clk 0:02:14.6]} 14. hxg6 {[%clk 0:02:29.1]} 14... fxg6 {[%clk 0:02:14.6]} 15.
Nf3 {[%clk 0:02:26.4]} 15... Nc6 {[%clk 0:02:11.8]} 16. Ng5 {[%clk 0:02:14]}
16... Bd7 {[%clk 0:02:10.1]} 17. Bc4+ {[%clk 0:02:10.7]} 17... Kg7 {[%clk
0:02:07.5]} 18. Rxh7+ {[%clk 0:02:09.4]} 18... Kf6 {[%clk 0:02:06.7]} 19. Rxd7
{[%clk 0:01:59.7]} 19... b5 {[%clk 0:01:54.1]} 20. Nh7# {[%clk 0:01:58.4]} 1-0

[Event "Early-Titled-Tuesday-Blitz-April-16-2024"]
[Site "Chess.com"]
[Date "2024.04.16"]
[Round "9"]
[White "CristianS27"]
[Black "LegenDaDaDa"]
[Result "1-0"]
[WhiteElo "2536"]
[BlackElo "2311"]
[TimeControl "180+1"]
[EndTime "9:45:04 PDT"]
[Termination "CristianS27 won by checkmate"]

1. e4 {[%clk 0:03:00.9]} 1... e5 {[%clk 0:02:59.9]} 2. Nf3 {[%clk 0:03:00.9]}
2... Nc6 {[%clk 0:03:00.3]} 3. Bc4 {[%clk 0:03:01.3]} 3... Bc5 {[%clk 0:02:59]}
4. c3 {[%clk 0:03:01.2]} 4... Nf6 {[%clk 0:02:59]} 5. d4 {[%clk 0:03:02.1]} 5...
exd4 {[%clk 0:02:55]} 6. cxd4 {[%clk 0:03:03]} 6... Bb4+ {[%clk 0:02:54.1]} 7.
Nc3 {[%clk 0:03:03.9]} 7... Nxe4 {[%clk 0:02:48.2]} 8. O-O {[%clk 0:03:03.9]}
8... Bxc3 {[%clk 0:02:47.8]} 9. d5 {[%clk 0:03:04]} 9... Ne5 {[%clk 0:02:46.9]}
10. bxc3 {[%clk 0:03:04]} 10... Nxc4 {[%clk 0:02:46.7]} 11. Qd4 {[%clk
0:03:04.7]} 11... f5 {[%clk 0:02:43.9]} 12. Qxc4 {[%clk 0:03:03.6]} 12... d6
{[%clk 0:02:43.4]} 13. Re1 {[%clk 0:02:58.8]} 13... O-O {[%clk 0:02:43.1]} 14.
Rb1 {[%clk 0:02:57.7]} 14... Qf6 {[%clk 0:02:40.3]} 15. Nd4 {[%clk 0:02:56.7]}
15... Qf7 {[%clk 0:02:31.7]} 16. Ne6 {[%clk 0:02:52.7]} 16... Bxe6 {[%clk
0:02:12.2]} 17. dxe6 {[%clk 0:02:53.6]} 17... Qe7 {[%clk 0:02:09.9]} 18. Rxb7
{[%clk 0:02:51.2]} 18... Nc5 {[%clk 0:02:05.6]} 19. Bg5 {[%clk 0:02:39.1]} 19...
Qxg5 {[%clk 0:01:54.9]} 20. e7+ {[%clk 0:02:39.2]} 20... Kh8 {[%clk 0:01:55.1]}
21. exf8=Q+ {[%clk 0:02:34.9]} 21... Rxf8 {[%clk 0:01:56]} 22. Qf7 {[%clk
0:02:12.3]} 22... Rg8 {[%clk 0:01:45.9]} 23. Rxc7 {[%clk 0:02:09.3]} 23... Qd2
{[%clk 0:01:37.4]} 24. Qxg8+ {[%clk 0:02:08.4]} 24... Kxg8 {[%clk 0:01:33.2]}
25. Re8# {[%clk 0:02:09.3]} 1-0

[Event "Early-Titled-Tuesday-Blitz-April-16-2024"]
[Site "Chess.com"]
[Date "2024.04.16"]
[Round "9"]
[White "Fernando_Offermann"]
[Black "GMCarbone"]
[Result "0-1"]
[WhiteElo "2446"]
[BlackElo "2582"]
[TimeControl "180+1"]
[EndTime "9:45:29 PDT"]
[Termination "GMCarbone won by resignation"]

1. Nf3 {[%clk 0:03:00.1]} 1... Nf6 {[%clk 0:02:58.3]} 2. g3 {[%clk 0:03:00.2]}
2... d5 {[%clk 0:02:58.9]} 3. Bg2 {[%clk 0:03:00.6]} 3... e6 {[%clk 0:02:59.6]}
4. O-O {[%clk 0:03:01.1]} 4... Be7 {[%clk 0:03:00.3]} 5. d3 {[%clk 0:03:01.7]}
5... c5 {[%clk 0:02:50.3]} 6. Nbd2 {[%clk 0:03:01.5]} 6... Nc6 {[%clk 0:02:51]}
7. e4 {[%clk 0:03:02]} 7... b5 {[%clk 0:02:50.9]} 8. a4 {[%clk 0:03:01]} 8... b4
{[%clk 0:02:49.7]} 9. e5 {[%clk 0:03:00.2]} 9... Nd7 {[%clk 0:02:49.4]} 10. Re1
{[%clk 0:03:00.3]} 10... Qc7 {[%clk 0:02:26.1]} 11. Qe2 {[%clk 0:02:59.7]} 11...
h6 {[%clk 0:02:23.4]} 12. h4 {[%clk 0:02:58.5]} 12... a5 {[%clk 0:02:23.2]} 13.
Nf1 {[%clk 0:02:57.3]} 13... Ba6 {[%clk 0:02:22.4]} 14. h5 {[%clk 0:02:56.3]}
14... Nd4 {[%clk 0:02:15.8]} 15. Nxd4 {[%clk 0:02:52.4]} 15... cxd4 {[%clk
0:02:16.7]} 16. Bf4 {[%clk 0:02:51.9]} 16... Rc8 {[%clk 0:02:12.1]} 17. Rac1
{[%clk 0:02:51.8]} 17... Nc5 {[%clk 0:01:38.3]} 18. b3 {[%clk 0:02:49.2]} 18...
O-O {[%clk 0:01:25.9]} 19. Qg4 {[%clk 0:02:45.3]} 19... Kh8 {[%clk 0:01:22.2]}
20. Bd2 {[%clk 0:02:42.7]} 20... Nd7 {[%clk 0:01:19.2]} 21. Qxd4 {[%clk
0:02:41.4]} 21... Bc5 {[%clk 0:01:05.8]} 22. Qf4 {[%clk 0:02:38.7]} 22... f6
{[%clk 0:00:55.2]} 23. exf6 {[%clk 0:02:36.2]} 23... Rxf6 {[%clk 0:00:55.8]} 24.
Qxc7 {[%clk 0:02:35.8]} 24... Rxc7 {[%clk 0:00:56.7]} 25. Nh2 {[%clk 0:02:30.8]}
25... Bxf2+ {[%clk 0:00:54.9]} 26. Kf1 {[%clk 0:02:30.4]} 26... Bxg3+ {[%clk
0:00:52.7]} 0-1

[Event "Early-Titled-Tuesday-Blitz-April-16-2024"]
[Site "Chess.com"]
[Date "2024.04.16"]
[Round "9"]
[White "Iskusnyh"]
[Black "LastHeroJr"]
[Result "1-0"]
[WhiteElo "2603"]
[BlackElo "2479"]
[TimeControl "180+1"]
[EndTime "9:45:31 PDT"]
[Termination "Iskusnyh won by resignation"]

1. d4 {[%clk 0:02:59.5]} 1... d5 {[%clk 0:02:58.4]} 2. c4 {[%clk 0:02:59.7]}
2... c6 {[%clk 0:02:58.6]} 3. Nf3 {[%clk 0:02:59.3]} 3... Nf6 {[%clk 0:02:58.6]}
4. e3 {[%clk 0:02:59.8]} 4... e6 {[%clk 0:02:58.2]} 5. b3 {[%clk 0:02:58.1]}
5... Be7 {[%clk 0:02:58.3]} 6. Bd3 {[%clk 0:02:57.7]} 6... O-O {[%clk
0:02:58.6]} 7. O-O {[%clk 0:02:57.6]} 7... Nbd7 {[%clk 0:02:58.2]} 8. Bb2 {[%clk
0:02:56.2]} 8... b6 {[%clk 0:02:58.4]} 9. Nc3 {[%clk 0:02:56]} 9... Bb7 {[%clk
0:02:58.6]} 10. Qe2 {[%clk 0:02:54.5]} 10... Rc8 {[%clk 0:02:58.2]} 11. Rad1
{[%clk 0:02:49.6]} 11... Ba8 {[%clk 0:02:57.8]} 12. e4 {[%clk 0:02:47.9]} 12...
dxe4 {[%clk 0:02:57.7]} 13. Nxe4 {[%clk 0:02:48.5]} 13... Re8 {[%clk 0:02:57.7]}
14. Rfe1 {[%clk 0:02:34.8]} 14... Nf8 {[%clk 0:02:55.3]} 15. Ng3 {[%clk
0:02:23.7]} 15... Ng6 {[%clk 0:02:54.8]} 16. Ne5 {[%clk 0:02:22.4]} 16... Qc7
{[%clk 0:02:53.3]} 17. Nh5 {[%clk 0:01:50.7]} 17... Bb4 {[%clk 0:02:50.6]} 18.
Nxf6+ {[%clk 0:01:42.3]} 18... gxf6 {[%clk 0:02:48.8]} 19. Ng4 {[%clk
0:01:42.5]} 19... Qf4 {[%clk 0:02:43.6]} 20. Bc1 {[%clk 0:01:34.7]} 20... Qc7
{[%clk 0:02:13.5]} 21. Nxf6+ {[%clk 0:01:33.9]} 21... Kg7 {[%clk 0:02:13.9]} 22.
Nxe8+ {[%clk 0:01:31.9]} 22... Rxe8 {[%clk 0:02:14.1]} 23. Bd2 {[%clk
0:01:30.1]} 23... c5 {[%clk 0:02:13.8]} 24. Bxb4 {[%clk 0:01:26.7]} 24... cxb4
{[%clk 0:02:13.5]} 25. d5 {[%clk 0:01:26.8]} 25... Qb7 {[%clk 0:02:10.3]} 26.
Be4 {[%clk 0:01:22.3]} 26... f5 {[%clk 0:02:10.2]} 27. Bxf5 {[%clk 0:01:19.6]}
1-0

[Event "Early-Titled-Tuesday-Blitz-April-16-2024"]
[Site "Chess.com"]
[Date "2024.04.16"]
[Round "9"]
[White "YegoryoCh"]
[Black "Korchmar_Vasiliy"]
[Result "0-1"]
[WhiteElo "2580"]
[BlackElo "2717"]
[TimeControl "180+1"]
[EndTime "9:45:54 PDT"]
[Termination "Korchmar_Vasiliy won by resignation"]

1. e4 {[%clk 0:03:00.9]} 1... c5 {[%clk 0:02:58.8]} 2. Nf3 {[%clk 0:03:00.6]}
2... d6 {[%clk 0:02:59]} 3. d4 {[%clk 0:03:00.8]} 3... cxd4 {[%clk 0:02:59.9]}
4. Nxd4 {[%clk 0:03:01.7]} 4... Nf6 {[%clk 0:03:00.4]} 5. Nc3 {[%clk 0:03:01.9]}
5... e5 {[%clk 0:03:01.1]} 6. Nb3 {[%clk 0:02:59.9]} 6... Be7 {[%clk 0:02:59.9]}
7. Bg5 {[%clk 0:02:57.6]} 7... O-O {[%clk 0:02:55.6]} 8. Qd2 {[%clk 0:02:57.6]}
8... a5 {[%clk 0:02:49.7]} 9. a4 {[%clk 0:02:44.1]} 9... Be6 {[%clk 0:02:45.4]}
10. O-O-O {[%clk 0:02:43.9]} 10... Nc6 {[%clk 0:02:38.7]} 11. Bxf6 {[%clk
0:02:41.7]} 11... Bxf6 {[%clk 0:02:29.8]} 12. Qxd6 {[%clk 0:02:41]} 12... Qc8
{[%clk 0:02:28]} 13. Nd5 {[%clk 0:02:09.6]} 13... Bxd5 {[%clk 0:02:17.8]} 14.
exd5 {[%clk 0:02:08.7]} 14... Be7 {[%clk 0:02:10.4]} 15. dxc6 {[%clk 0:02:04.1]}
15... Bxd6 {[%clk 0:02:09.5]} 16. Rxd6 {[%clk 0:02:00.7]} 16... bxc6 {[%clk
0:02:09.7]} 17. Bc4 {[%clk 0:02:00.8]} 17... Qg4 {[%clk 0:01:58.9]} 18. Nd2
{[%clk 0:01:11.1]} 18... Rad8 {[%clk 0:01:51.1]} 19. Rxd8 {[%clk 0:01:10.6]}
19... Rxd8 {[%clk 0:01:52]} 20. Bd3 {[%clk 0:01:08.2]} 20... Qxg2 {[%clk
0:01:46.6]} 21. Re1 {[%clk 0:01:07.1]} 21... Qxh2 {[%clk 0:01:40.5]} 0-1

[Event "Early-Titled-Tuesday-Blitz-April-16-2024"]
[Site "Chess.com"]
[Date "2024.04.16"]
[Round "9"]
[White "Root_21"]
[Black "Polish_fighter3000"]
[Result "0-1"]
[WhiteElo "2638"]
[BlackElo "3128"]
[TimeControl "180+1"]
[EndTime "9:46:01 PDT"]
[Termination "Polish_fighter3000 won by resignation"]

1. e4 {[%clk 0:03:00.9]} 1... c5 {[%clk 0:02:55.3]} 2. Nf3 {[%clk 0:03:01.1]}
2... a6 {[%clk 0:02:53.7]} 3. c4 {[%clk 0:03:00]} 3... Nc6 {[%clk 0:02:52.6]} 4.
d4 {[%clk 0:02:59.9]} 4... cxd4 {[%clk 0:02:52.4]} 5. Nxd4 {[%clk 0:03:00.8]}
5... e5 {[%clk 0:02:51]} 6. Nf5 {[%clk 0:02:59.7]} 6... d5 {[%clk 0:02:46.9]} 7.
cxd5 {[%clk 0:02:59.9]} 7... Bxf5 {[%clk 0:02:45.6]} 8. exf5 {[%clk 0:02:58.9]}
8... Nd4 {[%clk 0:02:44.5]} 9. Bd3 {[%clk 0:02:51.5]} 9... Qxd5 {[%clk 0:02:38]}
10. O-O {[%clk 0:02:51.6]} 10... Bb4 {[%clk 0:02:25.2]} 11. Nc3 {[%clk
0:02:48.5]} 11... Bxc3 {[%clk 0:02:23.5]} 12. bxc3 {[%clk 0:02:49.4]} 12... Nc6
{[%clk 0:02:24]} 13. Bg5 {[%clk 0:02:38.4]} 13... h6 {[%clk 0:02:15.8]} 14. Bh4
{[%clk 0:02:35.2]} 14... Nge7 {[%clk 0:01:50.7]} 15. f6 {[%clk 0:02:32.6]} 15...
gxf6 {[%clk 0:01:49]} 16. Bxf6 {[%clk 0:02:33.5]} 16... Rg8 {[%clk 0:01:48.7]}
17. f3 {[%clk 0:02:30.4]} 17... Rd8 {[%clk 0:01:27.2]} 18. Bh7 {[%clk
0:02:18.8]} 18... Qc5+ {[%clk 0:01:25.9]} 19. Kh1 {[%clk 0:02:19.3]} 19... Rxd1
{[%clk 0:01:24.4]} 20. Raxd1 {[%clk 0:02:20.2]} 20... Nd5 {[%clk 0:01:13.6]} 21.
Rxd5 {[%clk 0:01:51.3]} 21... Qxd5 {[%clk 0:01:14.5]} 22. Bxg8 {[%clk
0:01:51.8]} 22... Qd3 {[%clk 0:01:14.7]} 23. Rc1 {[%clk 0:01:49.7]} 23... Qg6
{[%clk 0:01:14.3]} 24. Bxe5 {[%clk 0:01:45.6]} 24... Nxe5 {[%clk 0:01:13.1]} 25.
Re1 {[%clk 0:01:46.2]} 25... Kf8 {[%clk 0:01:13.2]} 26. h4 {[%clk 0:01:41.3]}
26... Qg3 {[%clk 0:01:11]} 0-1

[Event "Early-Titled-Tuesday-Blitz-April-16-2024"]
[Site "Chess.com"]
[Date "2024.04.16"]
[Round "9"]
[White "KubaGepard"]
[Black "Josgar05"]
[Result "1-0"]
[WhiteElo "2582"]
[BlackElo "2446"]
[TimeControl "180+1"]
[EndTime "9:46:01 PDT"]
[Termination "KubaGepard won by resignation"]

1. d4 {[%clk 0:03:00.9]} 1... d5 {[%clk 0:02:59.2]} 2. Nf3 {[%clk 0:03:01.8]}
2... Nf6 {[%clk 0:02:58.7]} 3. c4 {[%clk 0:03:01.5]} 3... c6 {[%clk 0:02:58.8]}
4. e3 {[%clk 0:03:01.3]} 4... Bf5 {[%clk 0:02:53.8]} 5. Bd3 {[%clk 0:03:01.2]}
5... Bxd3 {[%clk 0:02:53.5]} 6. Qxd3 {[%clk 0:03:02.1]} 6... e6 {[%clk 0:02:54]}
7. O-O {[%clk 0:03:02.5]} 7... Bd6 {[%clk 0:02:53.6]} 8. Nc3 {[%clk 0:03:01.3]}
8... O-O {[%clk 0:02:53.4]} 9. Rd1 {[%clk 0:03:01.2]} 9... Nbd7 {[%clk
0:02:53.6]} 10. e4 {[%clk 0:03:01.6]} 10... dxe4 {[%clk 0:02:53.3]} 11. Nxe4
{[%clk 0:03:02.5]} 11... Nxe4 {[%clk 0:02:53.6]} 12. Qxe4 {[%clk 0:03:03.4]}
12... Nf6 {[%clk 0:02:54.1]} 13. Qe2 {[%clk 0:03:03.9]} 13... Qc7 {[%clk
0:02:52.7]} 14. b3 {[%clk 0:03:03.5]} 14... c5 {[%clk 0:02:52.6]} 15. h3 {[%clk
0:03:01.5]} 15... cxd4 {[%clk 0:02:47.8]} 16. Nxd4 {[%clk 0:03:02.4]} 16... a6
{[%clk 0:02:46.5]} 17. Nxe6 {[%clk 0:02:41.9]} 17... Qe7 {[%clk 0:02:29.1]} 18.
Nd4 {[%clk 0:02:40.6]} 18... Be5 {[%clk 0:02:27.8]} 19. Bb2 {[%clk 0:02:31.9]}
19... Rfe8 {[%clk 0:02:24.8]} 20. Kf1 {[%clk 0:02:27.4]} 20... Bxd4 {[%clk
0:02:21.6]} 21. Qxe7 {[%clk 0:02:25.8]} 21... Rxe7 {[%clk 0:02:22.5]} 22. Bxd4
{[%clk 0:02:24.1]} 22... Nh5 {[%clk 0:02:21.5]} 23. g3 {[%clk 0:02:15.2]} 23...
Rc8 {[%clk 0:02:19.5]} 24. Re1 {[%clk 0:02:12]} 24... Rd7 {[%clk 0:02:18]} 25.
Be3 {[%clk 0:02:06.1]} 25... Nf6 {[%clk 0:02:17]} 26. Rad1 {[%clk 0:02:01.2]}
26... Kf8 {[%clk 0:02:13.2]} 27. Bf4 {[%clk 0:01:53.7]} 27... Rcd8 {[%clk
0:01:59.6]} 28. Rxd7 {[%clk 0:01:48.4]} 28... Rxd7 {[%clk 0:02:00.5]} 29. c5
{[%clk 0:01:47.8]} 29... Nd5 {[%clk 0:01:54.5]} 30. Bd6+ {[%clk 0:01:46.2]}
30... Ne7 {[%clk 0:01:51.8]} 31. Ke2 {[%clk 0:01:37.5]} 31... f6 {[%clk
0:01:43.7]} 32. Kd3 {[%clk 0:01:36.6]} 32... Kf7 {[%clk 0:01:44.3]} 33. Rxe7+
{[%clk 0:01:36.8]} 33... Rxe7 {[%clk 0:01:45]} 34. Bxe7 {[%clk 0:01:37.5]} 34...
Kxe7 {[%clk 0:01:45.6]} 35. Kd4 {[%clk 0:01:38.1]} 35... Ke6 {[%clk 0:01:45.9]}
36. b4 {[%clk 0:01:38.1]} 36... h5 {[%clk 0:01:43.1]} 37. a4 {[%clk 0:01:38.1]}
37... g5 {[%clk 0:01:43.4]} 38. h4 {[%clk 0:01:37.7]} 38... gxh4 {[%clk
0:01:40.9]} 39. gxh4 {[%clk 0:01:38.6]} 39... f5 {[%clk 0:01:41.5]} 40. f4
{[%clk 0:01:38]} 1-0

[Event "Early-Titled-Tuesday-Blitz-April-16-2024"]
[Site "Chess.com"]
[Date "2024.04.16"]
[Round "9"]
[White "BardArtem"]
[Black "PolandHussars"]
[Result "1-0"]
[WhiteElo "2844"]
[BlackElo "2591"]
[TimeControl "180+1"]
[EndTime "9:46:15 PDT"]
[Termination "BardArtem won by resignation"]

1. e4 {[%clk 0:03:00.9]} 1... e5 {[%clk 0:03:00.1]} 2. d4 {[%clk 0:03:00.3]}
2... exd4 {[%clk 0:02:59.8]} 3. Qxd4 {[%clk 0:03:01.2]} 3... Nc6 {[%clk
0:02:58.6]} 4. Qd3 {[%clk 0:03:01.7]} 4... g6 {[%clk 0:02:57.9]} 5. Nc3 {[%clk
0:03:01.8]} 5... Bg7 {[%clk 0:02:58.3]} 6. Bf4 {[%clk 0:03:02.1]} 6... d6 {[%clk
0:02:58.6]} 7. O-O-O {[%clk 0:03:02.3]} 7... Be6 {[%clk 0:02:49.1]} 8. f3 {[%clk
0:03:01.7]} 8... Nf6 {[%clk 0:02:45.9]} 9. h4 {[%clk 0:02:58.1]} 9... Qd7 {[%clk
0:02:32.3]} 10. g4 {[%clk 0:02:55.1]} 10... O-O-O {[%clk 0:02:26.7]} 11. h5
{[%clk 0:02:49.7]} 11... Rhe8 {[%clk 0:02:24.7]} 12. Qb5 {[%clk 0:02:15.6]}
12... Kb8 {[%clk 0:02:10.5]} 13. e5 {[%clk 0:01:59.1]} 13... Nxe5 {[%clk
0:02:08.5]} 14. Bxe5 {[%clk 0:01:59.1]} 14... Qxb5 {[%clk 0:02:08.5]} 15. Bxb5
{[%clk 0:02:00]} 15... dxe5 {[%clk 0:02:06.5]} 16. Bxe8 {[%clk 0:02:00.3]} 16...
Rxe8 {[%clk 0:02:07.1]} 17. hxg6 {[%clk 0:01:59.7]} 17... hxg6 {[%clk
0:02:06.5]} 18. Nge2 {[%clk 0:01:58.9]} 18... c6 {[%clk 0:01:54.2]} 19. Ng3
{[%clk 0:01:57.3]} 19... Nd5 {[%clk 0:01:52.7]} 20. Nxd5 {[%clk 0:01:53.9]}
20... Bxd5 {[%clk 0:01:47.8]} 21. Ne4 {[%clk 0:01:54]} 21... f5 {[%clk 0:01:46]}
22. gxf5 {[%clk 0:01:54.3]} 22... gxf5 {[%clk 0:01:46.9]} 23. Nd6 {[%clk
0:01:54.5]} 23... Rf8 {[%clk 0:01:34.1]} 24. Rh7 {[%clk 0:01:53]} 24... Rf6
{[%clk 0:01:22.4]} 25. Rxg7 {[%clk 0:01:49.7]} 25... Rxd6 {[%clk 0:01:22.9]} 26.
c4 {[%clk 0:01:49.9]} 26... Rd7 {[%clk 0:00:49.1]} 27. Rxd7 {[%clk 0:01:46.1]}
1-0

[Event "Early-Titled-Tuesday-Blitz-April-16-2024"]
[Site "Chess.com"]
[Date "2024.04.16"]
[Round "9"]
[White "dianamirza"]
[Black "Felix-Rose"]
[Result "0-1"]
[WhiteElo "1944"]
[BlackElo "2184"]
[TimeControl "180+1"]
[EndTime "9:46:22 PDT"]
[Termination "Felix-Rose won by resignation"]

1. e4 {[%clk 0:03:00.9]} 1... e5 {[%clk 0:01:46.5]} 2. Nf3 {[%clk 0:02:59.6]}
2... Nc6 {[%clk 0:01:45.5]} 3. Bb5 {[%clk 0:02:57.3]} 3... a6 {[%clk 0:01:45.9]}
4. Bxc6 {[%clk 0:02:57.6]} 4... dxc6 {[%clk 0:01:46.1]} 5. O-O {[%clk
0:02:57.5]} 5... Qf6 {[%clk 0:01:46.1]} 6. Nc3 {[%clk 0:02:57]} 6... Ne7 {[%clk
0:01:44.2]} 7. d4 {[%clk 0:02:46]} 7... exd4 {[%clk 0:01:44.4]} 8. Nxd4 {[%clk
0:02:46.9]} 8... Bd7 {[%clk 0:01:40.1]} 9. f4 {[%clk 0:02:46.1]} 9... O-O-O
{[%clk 0:01:31.2]} 10. e5 {[%clk 0:02:43.6]} 10... Qh4 {[%clk 0:01:28.9]} 11.
Qf3 {[%clk 0:02:38.9]} 11... Ng6 {[%clk 0:01:18.4]} 12. Be3 {[%clk 0:02:34.4]}
12... Bc5 {[%clk 0:01:14.8]} 13. Rad1 {[%clk 0:02:33.3]} 13... Bg4 {[%clk
0:01:12.7]} 14. Qe4 {[%clk 0:02:08.5]} 14... Bxd1 {[%clk 0:01:10.1]} 15. Rxd1
{[%clk 0:02:09.4]} 15... Nxf4 {[%clk 0:01:06.9]} 16. Qf5+ {[%clk 0:01:54.6]}
16... Ne6 {[%clk 0:00:53.6]} 17. Nxe6 {[%clk 0:01:33.9]} 17... Bxe3+ {[%clk
0:00:48.3]} 18. Kh1 {[%clk 0:01:34.5]} 18... Rxd1+ {[%clk 0:00:41.3]} 19. Nxd1
{[%clk 0:01:34.7]} 19... Qe1+ {[%clk 0:00:41]} 0-1

[Event "Early-Titled-Tuesday-Blitz-April-16-2024"]
[Site "Chess.com"]
[Date "2024.04.16"]
[Round "9"]
[White "ferdipy"]
[Black "Herzog2012"]
[Result "0-1"]
[WhiteElo "2299"]
[BlackElo "2535"]
[TimeControl "180+1"]
[EndTime "9:46:35 PDT"]
[Termination "Herzog2012 won by resignation"]

1. e4 {[%clk 0:02:35.2]} 1... c5 {[%clk 0:02:58.7]} 2. d4 {[%clk 0:02:35.5]}
2... cxd4 {[%clk 0:02:58.2]} 3. c3 {[%clk 0:02:36.2]} 3... Nf6 {[%clk
0:02:58.2]} 4. e5 {[%clk 0:02:21.1]} 4... Nd5 {[%clk 0:02:57.7]} 5. Nf3 {[%clk
0:02:22]} 5... d6 {[%clk 0:02:54.3]} 6. cxd4 {[%clk 0:02:21.4]} 6... Nc6 {[%clk
0:02:52.3]} 7. Bc4 {[%clk 0:01:35.5]} 7... Nb6 {[%clk 0:02:50.4]} 8. Bb3 {[%clk
0:01:30.3]} 8... dxe5 {[%clk 0:02:45.2]} 9. dxe5 {[%clk 0:01:29.1]} 9... Qxd1+
{[%clk 0:02:42.3]} 10. Bxd1 {[%clk 0:01:29.7]} 10... Bg4 {[%clk 0:02:37.4]} 11.
Bf4 {[%clk 0:01:29.9]} 11... e6 {[%clk 0:02:37]} 12. Nbd2 {[%clk 0:01:29.2]}
12... Bb4 {[%clk 0:02:25.7]} 13. O-O {[%clk 0:01:27]} 13... O-O-O {[%clk
0:02:23.4]} 14. Ne4 {[%clk 0:01:18.1]} 14... Nd5 {[%clk 0:02:04.4]} 15. Bg3
{[%clk 0:01:15.6]} 15... Bxf3 {[%clk 0:01:46.6]} 16. Bxf3 {[%clk 0:01:14.8]}
16... Nd4 {[%clk 0:01:45.9]} 17. Nd6+ {[%clk 0:01:06.3]} 17... Bxd6 {[%clk
0:01:43.3]} 18. Bxd5 {[%clk 0:01:06.8]} 18... Ne2+ {[%clk 0:01:36.4]} 19. Kh1
{[%clk 0:00:48.9]} 19... Nxg3+ {[%clk 0:01:37.3]} 20. hxg3 {[%clk 0:00:46.4]}
20... Bxe5 {[%clk 0:01:34.6]} 21. Bxb7+ {[%clk 0:00:39.9]} 21... Kxb7 {[%clk
0:01:33]} 0-1

[Event "Early-Titled-Tuesday-Blitz-April-16-2024"]
[Site "Chess.com"]
[Date "2024.04.16"]
[Round "9"]
[White "Iball95"]
[Black "azikom"]
[Result "1-0"]
[WhiteElo "2894"]
[BlackElo "2709"]
[TimeControl "180+1"]
[EndTime "9:46:41 PDT"]
[Termination "Iball95 won by resignation"]

1. e4 {[%clk 0:02:59.1]} 1... c6 {[%clk 0:03:00.9]} 2. d4 {[%clk 0:02:58.9]}
2... d5 {[%clk 0:03:01.8]} 3. exd5 {[%clk 0:02:59.8]} 3... cxd5 {[%clk
0:03:01.8]} 4. c4 {[%clk 0:02:58.9]} 4... Nf6 {[%clk 0:03:01.4]} 5. Nc3 {[%clk
0:02:57.7]} 5... e6 {[%clk 0:03:01.8]} 6. c5 {[%clk 0:02:58.2]} 6... b6 {[%clk
0:03:00.3]} 7. b4 {[%clk 0:02:58]} 7... Be7 {[%clk 0:02:58.7]} 8. Nf3 {[%clk
0:02:58.1]} 8... O-O {[%clk 0:02:59.1]} 9. Bd3 {[%clk 0:02:49]} 9... Nc6 {[%clk
0:02:46.4]} 10. b5 {[%clk 0:02:39.8]} 10... Nb4 {[%clk 0:02:41.8]} 11. c6 {[%clk
0:02:30.6]} 11... Nxd3+ {[%clk 0:02:41.5]} 12. Qxd3 {[%clk 0:02:30.7]} 12... a6
{[%clk 0:02:41.8]} 13. O-O {[%clk 0:02:28.9]} 13... axb5 {[%clk 0:02:41.7]} 14.
Nxb5 {[%clk 0:02:29.8]} 14... Ra4 {[%clk 0:02:33.7]} 15. Bf4 {[%clk 0:02:19.6]}
15... Ba6 {[%clk 0:02:32.5]} 16. Rfb1 {[%clk 0:02:20]} 16... Ne4 {[%clk
0:02:24.7]} 17. Ne5 {[%clk 0:02:13.6]} 17... f6 {[%clk 0:01:22.4]} 18. Nd7
{[%clk 0:02:10.5]} 18... Rf7 {[%clk 0:01:22.2]} 19. f3 {[%clk 0:02:04.8]} 19...
Nd6 {[%clk 0:01:08.8]} 20. Bxd6 {[%clk 0:02:02.3]} 20... Bxd6 {[%clk 0:01:08.6]}
21. Qe3 {[%clk 0:01:45.9]} 21... e5 {[%clk 0:00:43.2]} 22. Nxd6 {[%clk
0:01:44.4]} 1-0

[Event "Early-Titled-Tuesday-Blitz-April-16-2024"]
[Site "Chess.com"]
[Date "2024.04.16"]
[Round "9"]
[White "Navyblue1"]
[Black "pfalcon1949"]
[Result "0-1"]
[WhiteElo "2251"]
[BlackElo "1944"]
[TimeControl "180+1"]
[EndTime "9:46:41 PDT"]
[Termination "pfalcon1949 won by checkmate"]

1. d4 {[%clk 0:03:00.9]} 1... Nf6 {[%clk 0:02:57.5]} 2. c4 {[%clk 0:03:01.2]}
2... c5 {[%clk 0:02:57.3]} 3. d5 {[%clk 0:02:57.8]} 3... b5 {[%clk 0:02:56.6]}
4. cxb5 {[%clk 0:02:53.9]} 4... a6 {[%clk 0:02:56.5]} 5. e3 {[%clk 0:02:53.4]}
5... g6 {[%clk 0:02:54.5]} 6. Nc3 {[%clk 0:02:52]} 6... Bg7 {[%clk 0:02:54.5]}
7. a4 {[%clk 0:02:50.9]} 7... O-O {[%clk 0:02:53.3]} 8. Ra3 {[%clk 0:02:49.7]}
8... Bb7 {[%clk 0:02:53.1]} 9. Nf3 {[%clk 0:02:44.4]} 9... e6 {[%clk 0:02:52.7]}
10. dxe6 {[%clk 0:02:36.3]} 10... fxe6 {[%clk 0:02:52.2]} 11. Qd6 {[%clk
0:01:30.5]} 11... Nd5 {[%clk 0:02:41.7]} 12. Nxd5 {[%clk 0:01:21.6]} 12... Bxd5
{[%clk 0:02:40.3]} 13. Qxc5 {[%clk 0:01:05.1]} 13... axb5 {[%clk 0:02:36]} 14.
Bxb5 {[%clk 0:00:57.5]} 14... Na6 {[%clk 0:02:35]} 15. Bxa6 {[%clk 0:00:42.4]}
15... Rxa6 {[%clk 0:02:23]} 16. O-O {[%clk 0:00:34.2]} 16... Rxf3 {[%clk
0:02:12.2]} 17. e4 {[%clk 0:00:18.6]} 17... Rxa3 {[%clk 0:01:58]} 18. bxa3
{[%clk 0:00:17.5]} 18... Bxe4 {[%clk 0:01:53.8]} 19. Re1 {[%clk 0:00:17.2]}
19... Bd5 {[%clk 0:01:49.7]} 20. Bf4 {[%clk 0:00:16.3]} 20... Rxa4 {[%clk
0:01:45.9]} 21. Bc7 {[%clk 0:00:15.5]} 21... Qg5 {[%clk 0:01:42.7]} 22. Bd6
{[%clk 0:00:14.5]} 22... Qxg2# {[%clk 0:01:41.2]} 0-1